[Event "Titled Tuesday Blitz July 4 Early 2023"]
[White "Wartiovaara, Oliver"]
[Black "Matamoros Franco, Carlos S."]
[WhiteFideId "513024"]
[BlackFideId "3600017"]
[WhiteElo "2383"]
[BlackElo "2598"]
[Result "0-1"]
[Round "11"]
[TimeControl "180+2"]
[Date "2023.07.04"]
[WhiteClock "0:00:42"]
[BlackClock "0:00:55"]
[Board "106"]

1. e4 {[%clk 0:03:00]}  d6 {[%clk 0:02:59]} 2. d4 {[%clk 0:02:59]}  Nf6 {[%clk 0:02:59]} 3. Nc3 {[%clk 0:02:59]}  e5 {[%clk 0:03:00]} 4. dxe5 {[%clk 0:02:58]}  dxe5 {[%clk 0:03:01]} 5. Qxd8+ {[%clk 0:02:58]}  Kxd8 {[%clk 0:03:02]} 6. Bc4 {[%clk 0:02:58]}  Bb4 {[%clk 0:03:01]} 7. Bxf7 {[%clk 0:02:56]}  Rf8 {[%clk 0:02:59]} 8. Bb3 {[%clk 0:02:54]}  Nxe4 {[%clk 0:02:58]} 9. Ne2 {[%clk 0:02:53]}  c6 {[%clk 0:02:23]} 10. O-O {[%clk 0:02:46]}  Nxc3 {[%clk 0:02:22]} 11. Nxc3 {[%clk 0:02:44]}  Bf5 {[%clk 0:02:11]} 12. Re1 {[%clk 0:02:25]}  Nd7 {[%clk 0:02:10]} 13. f4 {[%clk 0:02:23]}  Bc5+ {[%clk 0:01:37]} 14. Kh1 {[%clk 0:02:21]}  Bd6 {[%clk 0:01:33]} 15. fxe5 {[%clk 0:02:19]}  Nxe5 {[%clk 0:01:33]} 16. Bg5+ {[%clk 0:02:20]}  Kc7 {[%clk 0:01:33]} 17. Rad1 {[%clk 0:02:13]}  Ng4 {[%clk 0:01:29]} 18. Rxd6 {[%clk 0:01:54]}  Kxd6 {[%clk 0:01:28]} 19. Be7+ {[%clk 0:01:53]}  Kd7 {[%clk 0:01:28]} 20. Bxf8 {[%clk 0:01:53]}  Rxf8 {[%clk 0:01:29]} 21. h3 {[%clk 0:01:49]}  Nf6 {[%clk 0:01:28]} 22. g4 {[%clk 0:01:47]}  Bg6 {[%clk 0:01:28]} 23. Kg2 {[%clk 0:01:40]}  Re8 {[%clk 0:01:27]} 24. Rxe8 {[%clk 0:01:39]}  Nxe8 {[%clk 0:01:28]} 25. h4 {[%clk 0:01:33]}  h6 {[%clk 0:01:26]} 26. Kf3 {[%clk 0:01:31]}  Nd6 {[%clk 0:01:26]} 27. Kf4 {[%clk 0:01:31]}  c5 {[%clk 0:01:22]} 28. Ba4+ {[%clk 0:01:27]}  Ke7 {[%clk 0:01:15]} 29. h5 {[%clk 0:01:12]}  Bh7 {[%clk 0:01:14]} 30. Ke5 {[%clk 0:01:02]}  Nc4+ {[%clk 0:01:14]} 31. Kd5 {[%clk 0:01:01]}  Nxb2 {[%clk 0:01:07]} 32. Kxc5 {[%clk 0:01:00]}  Nxa4+ {[%clk 0:01:05]} 33. Nxa4 {[%clk 0:00:58]}  Bxc2 {[%clk 0:01:06]} 34. Nc3 {[%clk 0:00:58]}  Kf6 {[%clk 0:01:03]} 35. Kd6 {[%clk 0:00:58]}  a6 {[%clk 0:00:58]} 36. a4 {[%clk 0:00:57]}  b5 {[%clk 0:00:56]} 37. axb5 {[%clk 0:00:53]}  axb5 {[%clk 0:00:56]} 38. Nxb5 {[%clk 0:00:53]}  Bd1 {[%clk 0:00:56]} 39. Nc7 {[%clk 0:00:42]}  Bxg4 {[%clk 0:00:55]} 0-1


[Site "https://www.chess.com"]

[Event "Titled Tuesday Blitz July 4 Early 2023"]
[White "Karamsetty, Jeevan"]
[Black "Gaal, Zsoka"]
[WhiteFideId "2025337"]
[BlackFideId "777765"]
[WhiteElo "2506"]
[BlackElo "2375"]
[Result "0-1"]
[Round "11"]
[TimeControl "180+2"]
[Date "2023.07.04"]
[WhiteClock "0:00:04"]
[BlackClock "0:00:43"]
[Board "107"]

1. e4 {[%clk 0:03:00]}  Nf6 {[%clk 0:02:54]} 2. e5 {[%clk 0:02:59]}  Nd5 {[%clk 0:02:54]} 3. Nf3 {[%clk 0:02:59]}  d6 {[%clk 0:02:54]} 4. exd6 {[%clk 0:02:58]}  cxd6 {[%clk 0:02:55]} 5. c4 {[%clk 0:02:58]}  Nb6 {[%clk 0:02:55]} 6. d4 {[%clk 0:02:59]}  g6 {[%clk 0:02:55]} 7. Nc3 {[%clk 0:02:59]}  Bg7 {[%clk 0:02:56]} 8. Be2 {[%clk 0:02:59]}  O-O {[%clk 0:02:56]} 9. O-O {[%clk 0:03:00]}  Bg4 {[%clk 0:02:57]} 10. b3 {[%clk 0:02:59]}  Nc6 {[%clk 0:02:57]} 11. Be3 {[%clk 0:03:00]}  d5 {[%clk 0:02:56]} 12. c5 {[%clk 0:02:58]}  Nc8 {[%clk 0:02:57]} 13. h3 {[%clk 0:02:57]}  Bxf3 {[%clk 0:02:56]} 14. Bxf3 {[%clk 0:02:58]}  e6 {[%clk 0:02:57]} 15. a3 {[%clk 0:02:55]}  N8e7 {[%clk 0:02:57]} 16. b4 {[%clk 0:02:50]}  Nf5 {[%clk 0:02:57]} 17. b5 {[%clk 0:02:48]}  Ncxd4 {[%clk 0:02:57]} 18. Bxd4 {[%clk 0:02:38]}  Nxd4 {[%clk 0:02:58]} 19. Rc1 {[%clk 0:02:36]}  Qa5 {[%clk 0:02:48]} 20. a4 {[%clk 0:02:26]}  Rac8 {[%clk 0:02:47]} 21. Bxd5 {[%clk 0:01:58]}  exd5 {[%clk 0:02:43]} 22. Nxd5 {[%clk 0:01:59]}  Kh8 {[%clk 0:02:37]} 23. Rc4 {[%clk 0:01:55]}  Nf5 {[%clk 0:02:36]} 24. Qg4 {[%clk 0:01:41]}  Rcd8 {[%clk 0:02:29]} 25. Nf4 {[%clk 0:01:30]}  Rd4 {[%clk 0:02:16]} 26. Rxd4 {[%clk 0:01:22]}  Nxd4 {[%clk 0:02:16]} 27. Qd7 {[%clk 0:01:15]}  Qxa4 {[%clk 0:02:13]} 28. Qxb7 {[%clk 0:01:15]}  Qxb5 {[%clk 0:02:13]} 29. Qxa7 {[%clk 0:01:15]}  Ne6 {[%clk 0:01:55]} 30. Nxe6 {[%clk 0:01:07]}  fxe6 {[%clk 0:01:56]} 31. Qe7 {[%clk 0:01:05]}  Qc4 {[%clk 0:01:47]} 32. Re1 {[%clk 0:00:59]}  Qd4 {[%clk 0:01:35]} 33. Rf1 {[%clk 0:00:38]}  Qf6 {[%clk 0:01:25]} 34. Qd7 {[%clk 0:00:36]}  Qf7 {[%clk 0:01:15]} 35. Qd6 {[%clk 0:00:32]}  Rc8 {[%clk 0:01:04]} 36. Re1 {[%clk 0:00:31]}  Bf8 {[%clk 0:01:00]} 37. Qe5+ {[%clk 0:00:26]}  Kg8 {[%clk 0:01:00]} 38. Rc1 {[%clk 0:00:23]}  Qf5 {[%clk 0:01:00]} 39. Qxf5 {[%clk 0:00:18]}  exf5 {[%clk 0:00:58]} 40. c6 {[%clk 0:00:18]}  Kf7 {[%clk 0:00:57]} 41. g3 {[%clk 0:00:19]}  Bd6 {[%clk 0:00:55]} 42. Kg2 {[%clk 0:00:18]}  Ke6 {[%clk 0:00:56]} 43. h4 {[%clk 0:00:16]}  Kd5 {[%clk 0:00:55]} 44. h5 {[%clk 0:00:16]}  Rxc6 {[%clk 0:00:54]} 45. Rd1+ {[%clk 0:00:15]}  Ke6 {[%clk 0:00:54]} 46. hxg6 {[%clk 0:00:16]}  hxg6 {[%clk 0:00:55]} 47. Re1+ {[%clk 0:00:16]}  Kf6 {[%clk 0:00:56]} 48. Rb1 {[%clk 0:00:15]}  Ra6 {[%clk 0:00:51]} 49. Rd1 {[%clk 0:00:14]}  Bc5 {[%clk 0:00:51]} 50. Rd5 {[%clk 0:00:13]}  Ba7 {[%clk 0:00:48]} 51. Rd2 {[%clk 0:00:12]}  g5 {[%clk 0:00:46]} 52. f3 {[%clk 0:00:07]}  Re6 {[%clk 0:00:41]} 53. Ra2 {[%clk 0:00:07]}  Bd4 {[%clk 0:00:41]} 54. Rd2 {[%clk 0:00:04]}  Be5 {[%clk 0:00:41]} 55. Rc2 {[%clk 0:00:04]}  Rb6 {[%clk 0:00:41]} 56. f4 {[%clk 0:00:03]}  gxf4 {[%clk 0:00:41]} 57. gxf4 {[%clk 0:00:04]}  Bxf4 {[%clk 0:00:42]} 58. Kf3 {[%clk 0:00:05]}  Be5 {[%clk 0:00:42]} 59. Rc8 {[%clk 0:00:04]}  Rb3+ {[%clk 0:00:42]} 60. Kf2 {[%clk 0:00:05]}  Kg5 {[%clk 0:00:42]} 61. Rc5 {[%clk 0:00:05]}  Kf4 {[%clk 0:00:42]} 62. Rc4+ {[%clk 0:00:04]}  Kg5 {[%clk 0:00:43]} 63. Ra4 {[%clk 0:00:04]}  Bf4 {[%clk 0:00:42]} 64. Kg2 {[%clk 0:00:04]}  Kg4 {[%clk 0:00:42]} 65. Rc4 {[%clk 0:00:04]}  Rb2+ {[%clk 0:00:43]} 66. Kf1 {[%clk 0:00:05]}  Kf3 {[%clk 0:00:43]} 67. Rc3+ {[%clk 0:00:05]}  Be3 {[%clk 0:00:44]} 68. Rc1 {[%clk 0:00:04]}  Bxc1 {[%clk 0:00:43]} 0-1


[Site "https://www.chess.com"]

[Event "Titled Tuesday Blitz July 4 Early 2023"]
[White "Barbot, Pierre"]
[Black "only_strong_moves"]
[WhiteFideId "663727"]
[WhiteElo "2371"]
[BlackElo "2503"]
[Result "1-0"]
[Round "11"]
[TimeControl "180+2"]
[Date "2023.07.04"]
[WhiteClock "0:00:18"]
[BlackClock "0:00:22"]
[Board "109"]

1. d4 {[%clk 0:03:00]}  d5 {[%clk 0:02:57]} 2. Nf3 {[%clk 0:02:59]}  Nf6 {[%clk 0:02:52]} 3. Bf4 {[%clk 0:02:58]}  e6 {[%clk 0:02:52]} 4. e3 {[%clk 0:02:58]}  c5 {[%clk 0:02:53]} 5. Nbd2 {[%clk 0:02:48]}  Nc6 {[%clk 0:02:52]} 6. c3 {[%clk 0:02:48]}  Nh5 {[%clk 0:02:52]} 7. Be5 {[%clk 0:02:40]}  f6 {[%clk 0:02:46]} 8. Bg3 {[%clk 0:02:39]}  g6 {[%clk 0:02:45]} 9. dxc5 {[%clk 0:02:28]}  Bxc5 {[%clk 0:02:42]} 10. Bd3 {[%clk 0:02:28]}  e5 {[%clk 0:02:39]} 11. Nb3 {[%clk 0:02:16]}  Be7 {[%clk 0:02:38]} 12. Bb5 {[%clk 0:02:12]}  O-O {[%clk 0:02:34]} 13. Nfd2 {[%clk 0:01:59]}  a6 {[%clk 0:02:29]} 14. Bd3 {[%clk 0:01:58]}  f5 {[%clk 0:02:15]} 15. Be2 {[%clk 0:01:38]}  Ng7 {[%clk 0:02:07]} 16. f4 {[%clk 0:01:36]}  Ne6 {[%clk 0:02:00]} 17. fxe5 {[%clk 0:01:33]}  Bh4 {[%clk 0:01:58]} 18. Nf3 {[%clk 0:01:30]}  Bxg3+ {[%clk 0:01:55]} 19. hxg3 {[%clk 0:01:31]}  Kg7 {[%clk 0:01:43]} 20. Qd2 {[%clk 0:01:27]}  Ng5 {[%clk 0:01:41]} 21. e4 {[%clk 0:01:14]}  f4 {[%clk 0:01:29]} 22. exd5 {[%clk 0:01:09]}  Ne4 {[%clk 0:01:23]} 23. Qd3 {[%clk 0:01:09]}  Nxg3 {[%clk 0:01:22]} 24. O-O-O {[%clk 0:00:47]}  Bf5 {[%clk 0:01:21]} 25. Qd2 {[%clk 0:00:39]}  Nb4 {[%clk 0:01:17]} 26. cxb4 {[%clk 0:00:33]}  Rc8+ {[%clk 0:01:16]} 27. Nc5 {[%clk 0:00:33]}  b6 {[%clk 0:01:16]} 28. Bd3 {[%clk 0:00:24]}  bxc5 {[%clk 0:01:14]} 29. Bxf5 {[%clk 0:00:23]}  Rxf5 {[%clk 0:01:11]} 30. Rhe1 {[%clk 0:00:22]}  cxb4+ {[%clk 0:01:08]} 31. Kb1 {[%clk 0:00:23]}  Qb6 {[%clk 0:00:55]} 32. e6 {[%clk 0:00:21]}  Qd6 {[%clk 0:00:41]} 33. e7 {[%clk 0:00:20]}  Re8 {[%clk 0:00:40]} 34. Qd4+ {[%clk 0:00:20]}  Kg8 {[%clk 0:00:32]} 35. Re6 {[%clk 0:00:20]}  Qd7 {[%clk 0:00:28]} 36. Ne5 {[%clk 0:00:19]}  Qb7 {[%clk 0:00:27]} 37. d6 {[%clk 0:00:14]}  Ne2 {[%clk 0:00:24]} 38. Qd5 {[%clk 0:00:12]}  Qxd5 {[%clk 0:00:21]} 39. Rxd5 {[%clk 0:00:13]}  f3 {[%clk 0:00:16]} 40. gxf3 {[%clk 0:00:12]}  Rc8 {[%clk 0:00:11]} 41. e8=Q+ {[%clk 0:00:12]}  Rxe8 {[%clk 0:00:11]} 42. Rxe8+ {[%clk 0:00:13]}  Kg7 {[%clk 0:00:12]} 43. d7 {[%clk 0:00:13]}  Nf4 {[%clk 0:00:10]} 44. d8=Q {[%clk 0:00:13]}  Nxd5 {[%clk 0:00:10]} 45. Qxd5 {[%clk 0:00:14]}  Rh5 {[%clk 0:00:11]} 46. Qf7+ {[%clk 0:00:14]}  Kh6 {[%clk 0:00:11]} 47. Ng4+ {[%clk 0:00:14]}  Kg5 {[%clk 0:00:10]} 48. Re5+ {[%clk 0:00:15]}  Kh4 {[%clk 0:00:11]} 49. Rxh5+ {[%clk 0:00:15]}  gxh5 {[%clk 0:00:11]} 50. Qxh7 {[%clk 0:00:15]}  Kh3 {[%clk 0:00:12]} 51. Qxh5+ {[%clk 0:00:15]}  Kg3 {[%clk 0:00:13]} 52. Qh2+ {[%clk 0:00:15]}  Kxf3 {[%clk 0:00:12]} 53. Nf6 {[%clk 0:00:16]}  Ke3 {[%clk 0:00:12]} 54. Qd6 {[%clk 0:00:17]}  Kf2 {[%clk 0:00:12]} 55. Qxb4 {[%clk 0:00:17]}  Kg2 {[%clk 0:00:13]} 56. Qb6 {[%clk 0:00:17]}  Kg3 {[%clk 0:00:14]} 57. Qxa6 {[%clk 0:00:18]}  Kh4 {[%clk 0:00:15]} 58. Ne4 {[%clk 0:00:18]}  Kg4 {[%clk 0:00:15]} 59. Nc3 {[%clk 0:00:19]}  Kf4 {[%clk 0:00:16]} 60. Qc4+ {[%clk 0:00:18]}  Ke3 {[%clk 0:00:16]} 61. Qe4+ {[%clk 0:00:16]}  Kf2 {[%clk 0:00:17]} 62. Qe2+ {[%clk 0:00:16]}  Kg1 {[%clk 0:00:18]} 63. Kc2 {[%clk 0:00:16]}  Kh1 {[%clk 0:00:19]} 64. Kd3 {[%clk 0:00:16]}  Kg1 {[%clk 0:00:19]} 65. Ke3 {[%clk 0:00:17]}  Kh1 {[%clk 0:00:20]} 66. Kf3 {[%clk 0:00:17]}  Kg1 {[%clk 0:00:21]} 67. Kg3 {[%clk 0:00:17]}  Kh1 {[%clk 0:00:22]} 68. Qe1# {[%clk 0:00:18]} 1-0


[Site "https://www.chess.com"]

[Event "Titled Tuesday Blitz July 4 Early 2023"]
[White "Shuvalov, Evgenij"]
[Black "Rozhkov, Viacheslav"]
[WhiteFideId "4187237"]
[BlackFideId "4181484"]
[WhiteElo "2499"]
[BlackElo "2370"]
[Result "0-1"]
[Round "11"]
[TimeControl "180+2"]
[Date "2023.07.04"]
[WhiteClock "0:00:05"]
[BlackClock "0:01:06"]
[Board "110"]

1. d4 {[%clk 0:01:09]}  d5 {[%clk 0:02:57]} 2. c4 {[%clk 0:01:09]}  dxc4 {[%clk 0:02:58]} 3. e3 {[%clk 0:01:09]}  e5 {[%clk 0:02:57]} 4. Nf3 {[%clk 0:01:09]}  Nc6 {[%clk 0:02:57]} 5. Bxc4 {[%clk 0:01:08]}  e4 {[%clk 0:02:56]} 6. Nfd2 {[%clk 0:01:08]}  Qg5 {[%clk 0:02:57]} 7. Kf1 {[%clk 0:01:07]}  Nf6 {[%clk 0:02:53]} 8. Nc3 {[%clk 0:01:07]}  Qg6 {[%clk 0:02:52]} 9. h3 {[%clk 0:01:06]}  Bd6 {[%clk 0:02:50]} 10. a3 {[%clk 0:01:04]}  O-O {[%clk 0:02:47]} 11. b4 {[%clk 0:01:03]}  a5 {[%clk 0:02:46]} 12. b5 {[%clk 0:01:02]}  Ne7 {[%clk 0:02:46]} 13. Qc2 {[%clk 0:01:00]}  Bf5 {[%clk 0:02:46]} 14. g4 {[%clk 0:00:59]}  Be6 {[%clk 0:02:22]} 15. Bxe6 {[%clk 0:00:52]}  fxe6 {[%clk 0:02:23]} 16. Ndxe4 {[%clk 0:00:43]}  Kh8 {[%clk 0:02:15]} 17. Ra2 {[%clk 0:00:42]}  Nxe4 {[%clk 0:01:35]} 18. Qxe4 {[%clk 0:00:43]}  Qf7 {[%clk 0:01:31]} 19. Kg2 {[%clk 0:00:38]}  Nd5 {[%clk 0:01:28]} 20. Nd1 {[%clk 0:00:18]}  Nf6 {[%clk 0:01:27]} 21. Qd3 {[%clk 0:00:14]}  e5 {[%clk 0:01:23]} 22. f3 {[%clk 0:00:11]}  Qxa2+ {[%clk 0:01:22]} 23. Nf2 {[%clk 0:00:10]}  exd4 {[%clk 0:01:21]} 24. e4 {[%clk 0:00:10]}  Rae8 {[%clk 0:01:15]} 25. h4 {[%clk 0:00:09]}  Nxe4 {[%clk 0:01:13]} 26. Rf1 {[%clk 0:00:08]}  Nxf2 {[%clk 0:01:06]} 27. Rxf2 {[%clk 0:00:05]}  Qd5 {[%clk 0:01:06]} 0-1


[Site "https://www.chess.com"]

[Event "Titled Tuesday Blitz July 4 Early 2023"]
[White "Schut, Han"]
[Black "Manukian, Artak"]
[WhiteFideId "1005561"]
[BlackFideId "13301373"]
[WhiteElo "2304"]
[BlackElo "2428"]
[Result "0-1"]
[Round "11"]
[TimeControl "180+2"]
[Date "2023.07.04"]
[WhiteClock "0:00:03"]
[BlackClock "0:00:42"]
[Board "117"]

1. e4 {[%clk 0:03:00]}  c6 {[%clk 0:02:52]} 2. d4 {[%clk 0:02:59]}  d5 {[%clk 0:02:52]} 3. e5 {[%clk 0:02:59]}  Bf5 {[%clk 0:02:52]} 4. Nf3 {[%clk 0:02:59]}  e6 {[%clk 0:02:52]} 5. Be2 {[%clk 0:02:59]}  c5 {[%clk 0:02:52]} 6. Be3 {[%clk 0:02:58]}  Qb6 {[%clk 0:02:52]} 7. Nc3 {[%clk 0:02:51]}  Qxb2 {[%clk 0:02:52]} 8. Qb1 {[%clk 0:02:45]}  Qxb1+ {[%clk 0:02:49]} 9. Rxb1 {[%clk 0:02:43]}  Bxc2 {[%clk 0:02:50]} 10. Rxb7 {[%clk 0:02:42]}  c4 {[%clk 0:02:48]} 11. Kd2 {[%clk 0:02:16]}  Bg6 {[%clk 0:02:46]} 12. Bd1 {[%clk 0:02:15]}  Be7 {[%clk 0:02:31]} 13. Ba4+ {[%clk 0:02:14]}  Kf8 {[%clk 0:02:29]} 14. Nb5 {[%clk 0:02:05]}  Nc6 {[%clk 0:02:20]} 15. Nd6 {[%clk 0:01:59]}  Nd8 {[%clk 0:02:09]} 16. Rc7 {[%clk 0:01:44]}  Rb8 {[%clk 0:02:08]} 17. Bg5 {[%clk 0:01:38]}  f6 {[%clk 0:02:02]} 18. Be3 {[%clk 0:01:07]}  Nf7 {[%clk 0:01:46]} 19. Nc8 {[%clk 0:01:02]}  Bd8 {[%clk 0:01:41]} 20. Rc6 {[%clk 0:00:53]}  Ne7 {[%clk 0:01:35]} 21. Nxe7 {[%clk 0:00:52]}  Kxe7 {[%clk 0:01:34]} 22. Nh4 {[%clk 0:00:52]}  Ba5+ {[%clk 0:01:28]} 23. Ke2 {[%clk 0:00:50]}  Bd3+ {[%clk 0:01:23]} 24. Kf3 {[%clk 0:00:48]}  g5 {[%clk 0:01:22]} 25. exf6+ {[%clk 0:00:45]}  Kxf6 {[%clk 0:01:20]} 26. Ra6 {[%clk 0:00:35]}  Bb6 {[%clk 0:01:13]} 27. Kg3 {[%clk 0:00:26]}  gxh4+ {[%clk 0:01:08]} 28. Kxh4 {[%clk 0:00:27]}  Rhg8 {[%clk 0:01:06]} 29. g4 {[%clk 0:00:26]}  h6 {[%clk 0:00:56]} 30. f4 {[%clk 0:00:26]}  Nd6 {[%clk 0:00:50]} 31. g5+ {[%clk 0:00:24]}  hxg5+ {[%clk 0:00:50]} 32. fxg5+ {[%clk 0:00:25]}  Ke7 {[%clk 0:00:50]} 33. Bf4 {[%clk 0:00:15]}  c3 {[%clk 0:00:44]} 34. Re1 {[%clk 0:00:03]}  Bxa6 {[%clk 0:00:42]} 0-1


[Site "https://www.chess.com"]

[Event "Titled Tuesday Blitz July 4 Early 2023"]
[White "Mickiewicz, Piotr"]
[Black "Acikel, Mert"]
[WhiteFideId "1114891"]
[BlackFideId "12956465"]
[WhiteElo "2425"]
[BlackElo "2303"]
[Result "0-1"]
[Round "11"]
[TimeControl "180+2"]
[Date "2023.07.04"]
[WhiteClock "0:00:00"]
[BlackClock "0:00:11"]
[Board "119"]

1. e4 {[%clk 0:03:00]}  e5 {[%clk 0:02:58]} 2. Nf3 {[%clk 0:03:01]}  Nc6 {[%clk 0:02:58]} 3. Bb5 {[%clk 0:03:00]}  a6 {[%clk 0:02:58]} 4. Ba4 {[%clk 0:02:59]}  Nf6 {[%clk 0:02:58]} 5. d3 {[%clk 0:02:59]}  d6 {[%clk 0:02:57]} 6. c4 {[%clk 0:02:55]}  g6 {[%clk 0:02:56]} 7. h3 {[%clk 0:02:52]}  Bg7 {[%clk 0:02:57]} 8. Be3 {[%clk 0:02:51]}  O-O {[%clk 0:02:57]} 9. Nc3 {[%clk 0:02:51]}  h6 {[%clk 0:02:50]} 10. O-O {[%clk 0:02:50]}  Be6 {[%clk 0:02:50]} 11. Nd5 {[%clk 0:02:41]}  Rb8 {[%clk 0:02:39]} 12. Rc1 {[%clk 0:02:36]}  Kh7 {[%clk 0:02:32]} 13. Qd2 {[%clk 0:02:33]}  Ng8 {[%clk 0:02:28]} 14. b4 {[%clk 0:02:29]}  f5 {[%clk 0:02:24]} 15. b5 {[%clk 0:02:21]}  Nce7 {[%clk 0:02:13]} 16. Nxe7 {[%clk 0:01:52]}  Qxe7 {[%clk 0:02:11]} 17. Qe2 {[%clk 0:01:50]}  f4 {[%clk 0:02:05]} 18. Bd2 {[%clk 0:01:49]}  g5 {[%clk 0:02:04]} 19. Nh2 {[%clk 0:01:40]}  Nf6 {[%clk 0:01:59]} 20. bxa6 {[%clk 0:01:29]}  bxa6 {[%clk 0:01:59]} 21. Ba5 {[%clk 0:01:25]}  h5 {[%clk 0:01:48]} 22. Rb1 {[%clk 0:01:23]}  g4 {[%clk 0:01:45]} 23. hxg4 {[%clk 0:01:21]}  hxg4 {[%clk 0:01:45]} 24. g3 {[%clk 0:01:16]}  f3 {[%clk 0:01:38]} 25. Nxf3 {[%clk 0:01:15]}  gxf3 {[%clk 0:01:34]} 26. Qxf3 {[%clk 0:01:16]}  Ng4 {[%clk 0:01:28]} 27. Qh1+ {[%clk 0:01:16]}  Kg6 {[%clk 0:01:26]} 28. Rxb8 {[%clk 0:01:08]}  Rxb8 {[%clk 0:01:26]} 29. Bd1 {[%clk 0:01:00]}  Rh8 {[%clk 0:01:23]} 30. Qg2 {[%clk 0:00:57]}  Rh2 {[%clk 0:01:11]} 31. Qf3 {[%clk 0:00:57]}  Qg5 {[%clk 0:01:02]} 32. Bxc7 {[%clk 0:00:51]}  Rh8 {[%clk 0:00:36]} 33. Bxd6 {[%clk 0:00:34]}  Nh2 {[%clk 0:00:17]} 34. Qg2 {[%clk 0:00:34]}  Bh3 {[%clk 0:00:17]} 35. Qxh3 {[%clk 0:00:26]}  Rxh3 {[%clk 0:00:16]} 36. Re1 {[%clk 0:00:25]}  Rh8 {[%clk 0:00:13]} 37. Kg2 {[%clk 0:00:24]}  Ng4 {[%clk 0:00:13]} 38. Ba4 {[%clk 0:00:16]}  Qf6 {[%clk 0:00:12]} 39. f4 {[%clk 0:00:11]}  Qxd6 {[%clk 0:00:11]} 40. f5+ {[%clk 0:00:11]}  Kf6 {[%clk 0:00:12]} 41. Kf3 {[%clk 0:00:12]}  Qxd3+ {[%clk 0:00:12]} 42. Kxg4 {[%clk 0:00:09]}  Rg8 {[%clk 0:00:12]} 43. Rd1 {[%clk 0:00:00]}  Qe2+ {[%clk 0:00:11]} 0-1


[Site "https://www.chess.com"]

[Event "Titled Tuesday Blitz July 4 Early 2023"]
[White "Vivas Zamora, Fabian Ernesto"]
[Black "Vaglio Munoz, Jaime"]
[WhiteFideId "3902480"]
[BlackFideId "6500145"]
[WhiteElo "2425"]
[BlackElo "2299"]
[Result "1-0"]
[Round "11"]
[TimeControl "180+2"]
[Date "2023.07.04"]
[WhiteClock "0:00:41"]
[BlackClock "0:00:00"]
[Board "120"]

1. c4 {[%clk 0:03:00]}  c6 {[%clk 0:02:59]} 2. Nf3 {[%clk 0:02:59]}  b5 {[%clk 0:02:59]} 3. cxb5 {[%clk 0:02:57]}  cxb5 {[%clk 0:03:00]} 4. e4 {[%clk 0:02:56]}  Bb7 {[%clk 0:03:00]} 5. Bxb5 {[%clk 0:02:46]}  Bxe4 {[%clk 0:02:59]} 6. Nc3 {[%clk 0:02:47]}  Bc6 {[%clk 0:02:57]} 7. O-O {[%clk 0:02:42]}  Nf6 {[%clk 0:02:56]} 8. d4 {[%clk 0:02:42]}  e6 {[%clk 0:02:53]} 9. Bxc6 {[%clk 0:02:34]}  Nxc6 {[%clk 0:02:52]} 10. d5 {[%clk 0:02:33]}  Nb4 {[%clk 0:02:51]} 11. dxe6 {[%clk 0:02:20]}  fxe6 {[%clk 0:02:46]} 12. Re1 {[%clk 0:02:12]}  Be7 {[%clk 0:02:45]} 13. Bf4 {[%clk 0:02:09]}  Nbd5 {[%clk 0:02:42]} 14. Nxd5 {[%clk 0:02:05]}  Nxd5 {[%clk 0:02:43]} 15. Bd6 {[%clk 0:01:44]}  O-O {[%clk 0:02:38]} 16. Bxe7 {[%clk 0:01:40]}  Nxe7 {[%clk 0:02:38]} 17. Qd6 {[%clk 0:01:37]}  Nd5 {[%clk 0:02:35]} 18. Rad1 {[%clk 0:01:35]}  Rb8 {[%clk 0:02:20]} 19. Ne5 {[%clk 0:01:27]}  Rxb2 {[%clk 0:02:16]} 20. Nxd7 {[%clk 0:01:18]}  Re8 {[%clk 0:01:15]} 21. Rxe6 {[%clk 0:01:09]}  Ne7 {[%clk 0:00:20]} 22. Nf6+ {[%clk 0:01:05]}  gxf6 {[%clk 0:00:20]} 23. Qxd8 {[%clk 0:01:04]}  Rxd8 {[%clk 0:00:20]} 24. Rxd8+ {[%clk 0:01:05]}  Kf7 {[%clk 0:00:21]} 25. Re1 {[%clk 0:01:05]}  Nf5 {[%clk 0:00:20]} 26. g3 {[%clk 0:01:04]}  Rxa2 {[%clk 0:00:18]} 27. Rd7+ {[%clk 0:01:04]}  Kg6 {[%clk 0:00:17]} 28. Re8 {[%clk 0:00:58]}  Nh6 {[%clk 0:00:14]} 29. h3 {[%clk 0:00:56]}  a5 {[%clk 0:00:13]} 30. Ra8 {[%clk 0:00:53]}  a4 {[%clk 0:00:13]} 31. Rda7 {[%clk 0:00:53]}  Nf5 {[%clk 0:00:13]} 32. Rxa4 {[%clk 0:00:53]}  Rb2 {[%clk 0:00:13]} 33. Rg4+ {[%clk 0:00:52]}  Kf7 {[%clk 0:00:12]} 34. Rf4 {[%clk 0:00:52]}  Ne7 {[%clk 0:00:11]} 35. Ra7 {[%clk 0:00:50]}  Re2 {[%clk 0:00:07]} 36. Rf3 {[%clk 0:00:50]}  Re1+ {[%clk 0:00:05]} 37. Kg2 {[%clk 0:00:49]}  Kg6 {[%clk 0:00:06]} 38. Re3 {[%clk 0:00:46]}  Rxe3 {[%clk 0:00:05]} 39. fxe3 {[%clk 0:00:47]}  Nd5 {[%clk 0:00:05]} 40. Kf3 {[%clk 0:00:47]}  h5 {[%clk 0:00:05]} 41. Ra5 {[%clk 0:00:46]}  Nb4 {[%clk 0:00:04]} 42. Ke4 {[%clk 0:00:43]}  Nc6 {[%clk 0:00:04]} 43. Rc5 {[%clk 0:00:43]}  Ne7 {[%clk 0:00:03]} 44. g4 {[%clk 0:00:44]}  hxg4 {[%clk 0:00:03]} 45. hxg4 {[%clk 0:00:45]}  Ng8 {[%clk 0:00:01]} 46. Kf4 {[%clk 0:00:41]}  Nh6 {[%clk 0:00:00]} 47. e4 {[%clk 0:00:41]} 1-0


[Site "https://www.chess.com"]